Cogmind - Beta 11.1 @@@ ROGUE MODE // 2022.05.15 @ 23:11:03 Player: Trione Result: Destroyed by as-05398 with Assembled Shotgun Performance ------------- Evolutions (3) 1500 Regions Visited (12) 2400 Robots Destroyed (165) 825 Value Destroyed (5005) 5005 Prototype IDs (30) 600 Alien Tech Used (0) 0 Bonus (1992) 1992 TOTAL SCORE: 12322 Bonus ------- High Alert Combat Kills 315 Follower Combat Kills 120 Aligned with FarCom 300 Met Imprinter 300 Triggered Deep Caves Wall 500 Exposed GOLEM Chamber 500 Friendly Fire -43 Cogmind --------- Core Integrity 0/700 Matter 8/300 Energy 84/100 System Corruption 1% Temperature Cool (0) Movement Core (50) Location -7/Deep Caves Parts ------- > --- POWER (1) -------- (None) > --- PROPULSION (2) --- Improved Carbon-fiber Leg > --- UTILITY (8) ------ Improved Signal Interpreter > --- WEAPON (2) ------- Longsword +1 > --- INVENTORY (5) ---- Makeshift Power Source Improved Sensor Array Heavy Missile Launcher Peak State ------------ > --- POWER ------------ Micro Nuclear Core > --- PROPULSION ------- Improved Carbon-fiber Leg Zionite Composite Leg I > --- UTILITY ---------- Humpback Improved Sensor Array Improved Signal Interpreter Advanced Targeting Computer Transmission Jammer Hardened Medium Armor Plating Makeshift Armor Plating > --- WEAPON ----------- Advanced Beam Cannon Longsword +1 > --- INVENTORY -------- Makeshift Power Source Armored Treads Improved Carbon-fiber Leg Improved Titanium Leg Makeshift Leg Wheel Wheel Improved Heat Sink Huge Storage Unit Humpback Compact Matter Pod Advanced ECM Suite Improved Weapon Shielding Hardened Medium Armor Plating Improved Medium Armor Plating Medium Reflective Plating Hacking Suite System Restoration Module Shock Rifle Shock Rifle Light EM Pulse Cannon Flak Gun Flak Gun Gauss Cannon Gauss Cannon Gauss Cannon Shock Bomb Launcher Heavy Missile Launcher Improved Datajack Plasma Cutter Impact Mace CR-A16's Pointy Stick GAL Module [Rating: 58] Favorites ----------- Power Light Nuclear Core Engine Improved Deuterium Engine Power Core Light Nuclear Core Reactor Zionite Light DM Reactor Propulsion Compact Wheel Treads Improved Treads Leg Zionite Composite Leg I Wheel Compact Wheel Utility Hardened Medium Armor Plating Device Improved Sensor Array Storage Humpback Processor Improved Signal Interpreter Hackware Hacking Suite Protection Hardened Medium Armor Plating Weapon Gauss Cannon Energy Gun Beam Rifle Energy Cannon Advanced Beam Cannon Ballistic Gun Flak Gun Ballistic Cannon Gauss Cannon Launcher Heavy Missile Launcher Special Weapon Plasma Cutter Impact Weapon Maul Slashing Weapon Longsword +1 Piercing Weapon CR-A16's Pointy Stick Special Melee Weapon Improved Datajack Build | -11 -10 -10 -9 -9 -9 -8 -8 -7 -7 -7 -7 -7 ------- Run | Scr Mat Min Mat Min Exi Min Mat Fac Low Low Zio Dee Slots Evolved 6 | . . . 2 . . . 2 2 . . . . Power . | . . . . . . . . . . . . . Propulsion . | . . . . . . . . . . . . . Utility 6 | . . . 2 . . . 2 2 . . . . Weapon . | . . . . . . . . . . . . . Parts Attached 285 | 9 9 1 25 2 6 1 63 70 16 2 42 39 Power 13 | 1 1 . 2 . . . 3 2 1 . 1 2 Engine 7 | 1 1 . 2 . . . 1 2 . . . . Core 5 | . . . . . . . 2 . 1 . 1 1 Reactor 1 | . . . . . . . . . . . . 1 Propulsion 51 | 2 4 . 8 2 . . 13 7 . . 8 7 Treads 15 | . 1 . 3 . . . 8 2 . . 1 . Leg 7 | . . . . . . . . . . . 2 5 Wheel 29 | 2 3 . 5 2 . . 5 5 . . 5 2 Hover . | . . . . . . . . . . . . . Flight . | . . . . . . . . . . . . . Utility 95 | 2 3 . 9 . 4 . 15 26 5 1 19 11 Device 28 | 1 1 . 4 . 2 . 1 7 1 1 6 4 Storage 17 | 1 1 . . . 2 . 6 1 . . 3 3 Processor 5 | . . . 1 . . . 1 2 . . 1 . Hackware 2 | . . . . . . . 1 1 . . . . Protection 43 | . 1 . 4 . . . 6 15 4 . 9 4 Artifact . | . . . . . . . . . . . . . Weapon 126 | 4 1 1 6 . 2 1 32 35 10 1 14 19 Energy Gun 19 | 1 . . 4 . . . 3 4 . . 2 5 Energy Cannon 19 | . . 1 1 . . 1 6 5 1 . 3 1 Ballistic Gun 23 | 3 1 . 1 . . . 7 2 2 . 3 4 Ballistic Cannon 13 | . . . . . . . . 8 3 . 2 . Launcher 14 | . . . . . . . 6 3 . . 2 3 Special Weapon 3 | . . . . . 1 . . . 2 . . . Impact Weapon 11 | . . . . . 1 . 4 3 1 . 1 1 Slashing Weapon 22 | . . . . . . . 6 9 1 1 1 4 Piercing Weapon 1 | . . . . . . . . . . . . 1 Special Melee Weapon 1 | . . . . . . . . 1 . . . . Unidentified Prototypes 7 | . . . 1 . . . 1 2 . . . 3 Parts Lost 49 | . . 1 8 . . . 16 3 . . 4 17 Power 7 | . . . 2 . . . 2 1 . . 1 1 Propulsion 11 | . . . 3 . . . 3 1 . . 2 2 Utility 19 | . . . 3 . . . 5 1 . . 1 9 Weapon 12 | . . 1 . . . . 6 . . . . 5 Highest Loss Streak 8 | . . 1 5 . . . 7 1 . . 2 8 To Critical Strikes 2 | . . . . . . . . . . . . 2 Average Slot Usage (%) 89 | . 97 100 98 100 89 88 91 86 84 84 88 89 Engine 4 | . 13 14 10 11 11 11 6 7 3 . . . Core 3 | . . . . . . . 2 . 3 7 6 6 Wheel 16 | . 26 28 17 22 22 22 15 14 15 15 14 13 Device 7 | . 12 14 14 11 10 11 3 4 5 4 6 7 Storage 9 | . 14 14 11 11 11 11 16 10 7 7 7 6 Processor 13 | . . . 1 11 11 11 14 15 15 15 15 17 Hackware 2 | . . . . . . . 6 5 3 . . . Protection 13 | . 1 . 16 11 1 . 5 10 12 18 19 18 Energy Gun 1 | . . . 12 11 . . . . . . 1 1 Energy Cannon 3 | . . 12 9 11 . 7 5 2 1 . 2 2 Ballistic Gun 3 | . 28 15 . . . . 3 . 4 . . 5 Ballistic Cannon 2 | . . . . . . . . 5 4 9 3 . Impact Weapon 1 | . . . . . 10 11 3 1 . . 1 . Slashing Weapon 2 | . . . . . . . 4 3 1 4 2 1 Naked Turns . | . . . . . . . . . . . . . Heaviest Build 316 | 12 49 50 60 57 251 214 219 256 255 255 248 316 Greatest Support 46 | 26 26 26 46 32 26 26 46 32 26 26 26 44 Greatest Overweight (x) 23 | 1 4 1 5 2 9 8 10 15 9 9 23 15 Average Overweight (x) 6 | . 1 1 2 1 6 8 2 7 8 9 8 9 Largest Inventory Capacity 35 | 8 20 20 20 20 35 35 35 35 35 35 35 35 Average Capacity 30 | 7 19 20 20 20 32 35 25 34 35 35 32 33 Most Carried 35 | 6 15 17 20 20 30 30 31 35 35 34 35 35 Average Carried 28 | 4 11 15 17 20 25 30 23 33 34 32 30 32 Final Capacity 35 | 8 20 20 20 20 35 35 25 35 35 35 35 5 Final Carried 35 | 6 14 17 20 20 30 30 25 35 35 32 35 3 Class Distribution -------------------- 64% | Hauler-Mutant 16% | Mutant 15% | Scavenger-Mutant 3% | Hauler-Assassin Dominant Class ---------------- Mutant | -10/Materials Mutant | -10/Mines Mutant | -9/Materials Scavenger-Mutant | -9/Mines Hauler-Mutant | -9/Exiles Hauler-Assassin | -8/Mines Mutant | -8/Materials Hauler-Mutant | -7/Factory Hauler-Mutant | -7/Lower Caves Hauler-Mutant | -7/Lower Caves Hauler-Mutant | -7/Zion Hauler-Mutant | -7/Deep Caves Resources | -11 -10 -10 -9 -9 -9 -8 -8 -7 -7 -7 -7 -7 ----------- Run | Scr Mat Min Mat Min Exi Min Mat Fac Low Low Zio Dee Matter Collected 4001 | 313 186 38 246 60 . . 843 989 294 80 686 266 Remotely . | . . . . . . . . . . . . . Salvage Created 8033 | 133 228 99 1404 . . . 2102 2146 250 77 1032 562 Parts 442 | 6 17 1 75 . . . 111 109 13 3 96 11 Haulers Intercepted 8 | . 1 . 2 . . . 3 2 . . . . Recyclers Shooed 6 | . 1 . 1 . . . 1 3 . . . . Parts Field Recycled . | . . . . . . . . . . . . . Retrieved Matter . | . . . . . . . . . . . . . Parts Self-Destructed 14 | . . . . . . . . . 13 . 1 . Prevented . | . . . . . . . . . . . . . Kills | -11 -10 -10 -9 -9 -9 -8 -8 -7 -7 -7 -7 -7 ------- Run | Scr Mat Min Mat Min Exi Min Mat Fac Low Low Zio Dee Combat Hostiles Destroyed 153 | . 8 2 20 . . . 34 33 5 . 3 48 Melee 18 | . . . . . . . 15 2 . . . 1 Guns 50 | . 8 . 12 . . . 4 18 2 . 1 5 Cannons 26 | . . 2 8 . . . 5 6 3 . 2 . AOE 52 | . . . . . . . 6 5 . . . 41 Classes Destroyed 22 | 2 3 . 5 . . . 4 1 1 1 3 2 Worker 6 | . . . 1 . . . 2 3 . . . . Builder 4 | . . . . . . . 1 3 . . . . Tunneler 3 | 2 . . 1 . . . . . . . . . Hauler 8 | . 1 . 2 . . . 3 2 . . . . Recycler 12 | 1 . . 3 . . . 2 6 . . . . Minesweeper 1 | . . . . . . . . . 1 . . . Operator 1 | . . . . . . . 1 . . . . . Watcher 4 | . . . 2 . . . 2 . . . . . Swarmer 19 | . 6 . 1 . . . 3 9 . . . . Grunt 47 | . 2 2 11 . . . 18 10 4 . . . Brawler 4 | . . . 1 . . . 1 2 . . . . Duelist 3 | . . . 1 . . . 1 1 . . . . Protector 1 | . . . . . . . 1 . . . . . Sentry 18 | . . . 6 . . . 8 3 1 . . . Hunter 4 | . . . . . . . 2 2 . . . . Programmer 6 | . . . . . . . . 6 . . . . Zionite 49 | . . . . . . . . . . . 49 . Z-Technician 5 | . . . . . . . . . . . . 5 Samaritan 2 | . . . . . . . . . . 2 . . Tinkerer 2 | . . . . . . . . . . . 2 . Assembled 47 | . . . . . . . . . . . . 47 Golem 1 | . . . . . . . . . . . . 1 Savage 1 | . . . . . . . . . . . 1 . Mutant 1 | . . . . . . . . . . . 1 . Best Kill Streak 39 | 3 3 2 4 . . . 7 10 3 . 9 39 Combat Bots Only 39 | . 3 2 4 . . . 5 9 3 . 1 39 Max Kills in Single Turn 14 | 1 1 1 1 . . . 2 2 1 1 1 14 Gunslinging . | . . . . . . . . . . . . . Exploded 14 | . . . . . . . 2 2 . . . 14 Melee 1 | . . . . . . . 1 1 . . . 1 Uniques/NPCs Destroyed 1 | . . . . . . . . . . . 1 . Imprinter (-7/Zion) Combat | -11 -10 -10 -9 -9 -9 -8 -8 -7 -7 -7 -7 -7 -------- Run | Scr Mat Min Mat Min Exi Min Mat Fac Low Low Zio Dee Damage Taken 8500 | . 154 223 850 . . . 2226 1537 316 5 932 2257 Core 1389 | . 49 62 140 . . . 433 98 . . 25 582 Absorbed by Shields . | . . . . . . . . . . . . . Redirected to Shielding 155 | . . . 52 . . . . . . . 45 58 Regen/Repaired (Parts) 194 | . . . . . . . . 194 . . . . Core Remaining (%) 60 | 100 . 55 . . . 65 21 . . . . . Volleys Fired 675 | 7 24 11 62 . . . 74 52 28 5 360 52 Largest 2 | 2 2 2 2 . . . 2 2 2 2 2 2 Hottest 116 | 60 40 80 116 . . . 116 116 96 96 106 106 Shots Fired 925 | 14 48 23 121 . . . 111 132 38 10 373 55 Gun 383 | 14 48 16 75 . . . 56 70 9 . 60 35 Cannon 479 | . . 7 46 . . . 34 49 17 10 309 7 Launcher 51 | . . . . . . . 21 13 . . 4 13 Special 12 | . . . . . . . . . 12 . . . Kinetic 287 | 9 48 16 . . . . 38 88 23 10 43 12 Thermal 495 | . . 7 104 . . . 39 28 15 . 298 4 Explosive 16 | . . . . . . . . . . . 4 12 Electromagnetic 127 | 5 . . 17 . . . 34 16 . . 28 27 Robot Hit Streak 41 | 4 10 11 15 . . . 11 41 12 1 11 8 Robot Miss Streak 7 | 3 5 1 3 . . . 2 3 5 2 6 7 Penetration Max 1 | . . . . . . . . 1 . . . . Secondary Targets 1 | . 1 . . . . . . . . . . . Max Gunslinging Chain 1 | . 1 . . . . . . . . . . . Autonomous 59 | . . . . . . . . 59 . . . . Shots Hit Robots 561 | 8 24 18 83 . . . 118 112 28 8 117 45 Core Hits 419 | 4 16 5 38 . . . 61 60 18 2 80 135 Critical Kills 4 | . . . . . . . 1 2 . . 1 . Critical Parts Destroyed 1 | . . . . . . . . 1 . . . . Critical Strikes 31 | . . . 7 . . . 10 9 . . 4 1 Burn 7 | . . . 7 . . . . . . . . . Meltdown 3 | . . . . . . . 1 1 . . 1 . Destroy 2 | . . . . . . . . 2 . . . . Blast 4 | . . . . . . . . 3 . . 1 . Corrupt 2 | . . . . . . . 1 . . . 1 . Sever 12 | . . . . . . . 8 3 . . 1 . Impale 1 | . . . . . . . . . . . . 1 Melee Attacks 193 | . . . . . . . 70 38 20 4 31 30 Impact 30 | . . . . . . . 16 . . . 8 6 Slashing 156 | . . . . . . . 54 38 20 4 23 17 Piercing 7 | . . . . . . . . . . . . 7 Sneak Attacks 19 | . . . . . . . 4 4 . 4 . 7 Combat Hostiles . | . . . . . . . . . . . . . Follow-up Attacks . | . . . . . . . . . . . . . Damage Inflicted 19178 | 129 244 226 1328 . . . 4578 4202 593 511 2244 5123 Guns 5100 | 91 244 121 776 . . . 664 1876 124 . 858 346 Cannons 3907 | . . 105 535 . . . 576 1001 238 132 1271 49 Explosions 5807 | 38 . . 17 . . . 1197 650 . . . 3905 Melee 4273 | . . . . . . . 2141 675 140 379 115 823 Ramming . | . . . . . . . . . . . . . Kinetic 4421 | 61 244 121 . . . . 417 2340 342 132 614 150 Thermal 4072 | 38 . 105 1187 . . . 838 555 111 . 1148 90 Explosive 3746 | . . . . . . . . . . . . 3746 Electromagnetic 2666 | 30 . . 141 . . . 1182 632 . . 367 314 Impact 237 | . . . . . . . 237 . . . . . Slashing 3580 | . . . . . . . 1904 675 140 379 115 367 Piercing 456 | . . . . . . . . . . . . 456 Highest Corruption 11 | . 3 3 11 11 11 11 . 1 1 . 5 1 Average Corruption 5 | . 2 3 6 11 11 11 . 1 1 . 4 1 Corruption Purged 8 | . . . . . . . . 2 1 . 5 . Corruption Blocked . | . . . . . . . . . . . . . Effects 96 | . 1 7 25 19 21 5 . 9 2 . 7 . Message Errors 25 | . . 3 4 5 8 1 . 1 1 . 2 . Matter Fused 20 | . . 1 5 3 2 . . 5 1 . 3 . Heat Flow Errors 12 | . . . 4 2 2 . . 2 . . 2 . Energy Discharges 16 | . . 1 5 6 2 2 . . . . . . Parts Rejected 1 | . . . 1 . . . . . . . . . Data Loss (minor) 16 | . 1 . 3 3 6 2 . 1 . . . . Data Loss (major) 3 | . . 1 1 . 1 . . . . . . . Misfires 3 | . . 1 2 . . . . . . . . . Overload Shots . | . . . . . . . . . . . . . Overflow Damage 831 | . . . . . . . 186 215 45 76 33 276 Projectiles 95 | . . . . . . . 2 32 27 1 33 . Explosions 196 | . . . . . . . 15 11 . . . 170 Melee 540 | . . . . . . . 169 172 18 75 . 106 Knockbacks 11 | . . . . . . . 3 3 1 4 . . Impact 2 | . . . . . . . 2 . . . . . Kinetic 8 | . . . . . . . . 3 1 4 . . Secondary 1 | . . . . . . . 1 . . . . . Self-Inflicted Damage 78 | . . . . . . . 40 . . . 4 34 Shots 7 | . . . . . . . 4 . . . 1 2 Rammed . | . . . . . . . . . . . . . Targets Rammed . | . . . . . . . . . . . . . Kicked . | . . . . . . . . . . . . . Crushed . | . . . . . . . . . . . . . Highest Temperature 375 | . 12 231 286 115 181 . 260 300 263 375 282 246 Average Temperature 87 | . 7 98 102 55 92 . 69 80 83 175 82 84 Received Heat Transfer 1787 | . 12 126 219 . . . 774 174 156 . 90 236 Effects 8 | . . . 1 . . . . 3 . 2 2 . Shutdowns 1 | . . . . . . . . . . 1 . . Energy Bleed 2 | . . . 1 . . . . 1 . . . . Interference 5 | . . . . . . . . 2 . 1 2 . Siege Activations . | . . . . . . . . . . . . . Robots Corrupted 6 | . . . . . . . 4 1 . . . 1 Combat Hostiles 6 | . . . . . . . 4 1 . . . 1 Parts Fried 12 | . . . . . . . 9 1 . . 2 . Impact Corruptions 5 | . . . . . . . 5 . . . . . Robots Melted 3 | . . . . . . . 1 1 . . 1 . Combat Hostiles 1 | . . . . . . . . 1 . . . . Parts Melted 18 | . . 1 13 . . . 2 . . . 2 . Heat Transferred 7998 | . . 222 3269 . . . 1421 827 333 . 1876 50 Parts Sabotaged . | . . . . . . . . . . . . . Parts Stolen 3 | . . . . . . . . . 1 2 . . Parts Stripped . | . . . . . . . . . . . . . Power Chain Reactions 6 | 1 . . . . . . 3 1 . . . 1 Missiles Intercepted . | . . . . . . . . . . . . . Alert | -11 -10 -10 -9 -9 -9 -8 -8 -7 -7 -7 -7 -7 ------- Run | Scr Mat Min Mat Min Exi Min Mat Fac Low Low Zio Dee Peak Influence 633 | 15 217 95 435 154 . . 590 633 . . . . Initial 263 | . 9 34 37 154 . . . 263 . . . . Average 283 | 7 123 60 256 113 . . 290 403 . . . . Maximum Alert Level 2 | . 1 . 2 . . . 2 2 . . . . Low Security (%) 37 | 100 72 100 30 100 . 100 33 11 . . . . Level 1 29 | . 27 . 66 . . . 25 30 . . . . Level 2 33 | . . . 3 . . . 40 58 . . . . Level 3 . | . . . . . . . . . . . . . Level 4 . | . . . . . . . . . . . . . Level 5 . | . . . . . . . . . . . . . High Security . | . . . . . . . . . . . . . Max Security . | . . . . . . . . . . . . . Squads Dispatched 27 | . 3 . 3 . . . 7 14 . . . . Investigation 4 | . . . 1 . . . 1 2 . . . . Extermination 6 | . . . . . . . . 6 . . . . Reinforcement 10 | . 3 . 2 . . . 2 3 . . . . Assault 1 | . . . . . . . 1 . . . . . Garrison 6 | . . . . . . . 3 3 . . . . Intercept . | . . . . . . . . . . . . . Searches Triggered . | . . . . . . . . . . . . . Construction Impeded 1 | . . . . . . . . 1 . . . . Haulers Reinforced 1 | . . . . . . . . 1 . . . . Active Scanning Responses . | . . . . . . . . . . . . . Cargo Convoy Interrupts . | . . . . . . . . . . . . . Stealth | -11 -10 -10 -9 -9 -9 -8 -8 -7 -7 -7 -7 -7 --------- Run | Scr Mat Min Mat Min Exi Min Mat Fac Low Low Zio Dee Distress Signals 9 | . 1 . 2 . . . 5 1 . . . . Communications Jammed . | . . . . . . . . . . . . . Distress Signals . | . . . . . . . . . . . . . Times Spotted 274 | . 16 5 31 . . . 51 49 8 4 51 59 Peak Tracking Total 33 | . 4 2 3 . . . 7 7 3 2 4 33 Tactical Retreats 25 | . . . 2 . . . 3 2 1 . 14 3 Traps | -11 -10 -10 -9 -9 -9 -8 -8 -7 -7 -7 -7 -7 ------- Run | Scr Mat Min Mat Min Exi Min Mat Fac Low Low Zio Dee Traps Triggered 8 | . 3 . 2 . . . . 3 . . . . Indirectly 1 | . . . . . . . . 1 . . . . Trap Hack Attempts . | . . . . . . . . . . . . . Triggered . | . . . . . . . . . . . . . Disarmed . | . . . . . . . . . . . . . Reprogrammed . | . . . . . . . . . . . . . Reused 1 | . . . . . . . . . . . 1 . Traps Extracted . | . . . . . . . . . . . . . Installed 2 | . . . . . . . . . . . 2 . Triggered 1 | . . . . . . . 1 . . . . . Most Traps Carried 5 | . . . . . . . . . 5 5 4 . Machines | -11 -10 -10 -9 -9 -9 -8 -8 -7 -7 -7 -7 -7 ---------- Run | Scr Mat Min Mat Min Exi Min Mat Fac Low Low Zio Dee Machines Disabled 8 | . . . 2 . . . 3 1 . . . 2 Max in Single Turn 2 | . . . 2 . . . 1 1 . . . 1 Garrison Access 2 | . . . . . . . 1 1 . . . . Machines Sabotaged . | . . . . . . . . . . . . . Garrisons Compromised . | . . . . . . . . . . . . . Overloaded Fab Kills . | . . . . . . . . . . . . . Hacking | -11 -10 -10 -9 -9 -9 -8 -8 -7 -7 -7 -7 -7 --------- Run | Scr Mat Min Mat Min Exi Min Mat Fac Low Low Zio Dee Machines Accessed 33 | . 5 1 8 . 1 . 8 10 . . . . Terminals 25 | . 5 1 7 . . . 7 5 . . . . Fabricators 2 | . . . . . . . . 2 . . . . Repair Stations 1 | . . . . . . . . 1 . . . . Recycling Units 1 | . . . 1 . . . . . . . . . Scanalyzers 1 | . . . . . . . 1 . . . . . Garrison Access 2 | . . . . . . . . 2 . . . . Total Hacks 88 | . 14 1 27 . 1 . 22 23 . . . . Successful 45 | . 6 1 16 . 1 . 11 10 . . . . Failed 43 | . 8 . 11 . . . 11 13 . . . . Catastrophic 6 | . . . 1 . . . 2 3 . . . . Database Lockouts . | . . . . . . . . . . . . . Manual 70 | . 14 2 23 . 1 . 16 14 . . . . Terminals 73 | . 14 1 24 . . . 20 14 . . . . Fabricators 3 | . . . . . . . . 3 . . . . Repair Stations 2 | . . . . . . . . 2 . . . . Recycling Units 3 | . . . 3 . . . . . . . . . Scanalyzers 2 | . . . . . . . 2 . . . . . Garrison Access 4 | . . . . . . . . 4 . . . . Terminal Hacks 15 | . 2 1 7 . 1 . 3 1 . . . . Robot Analysis 5 | . 1 1 3 . . . . . . . . . Branch Access Points 1 | . . . . . . . 1 . . . . . Terminal Index 2 | . . . 1 . . . 1 . . . . . Alert Level 1 | . 1 . . . . . . . . . . . Unreport Threat 1 | . . . . . . . . 1 . . . . Locate Traps 2 | . . . 1 . . . 1 . . . . . Hauler Manifests 1 | . . . 1 . . . . . . . . . Zone Layout 1 | . . . 1 . . . . . . . . . EX-Prototype ID Bank 1 | . . . . . 1 . . . . . . . Fabricator Hacks 2 | . . . . . . . . 2 . . . . Load Schematic 1 | . . . . . . . . 1 . . . . Build 1 | . . . . . . . . 1 . . . . Repair Station Hacks 2 | . . . . . . . . 2 . . . . Scan Component 1 | . . . . . . . . 1 . . . . Repair 1 | . . . . . . . . 1 . . . . Recycling Unit Hacks 1 | . . . 1 . . . . . . . . . Retrieve Components 1 | . . . 1 . . . . . . . . . Scanalyzer 2 | . . . . . . . 2 . . . . . Insert Component 1 | . . . . . . . 1 . . . . . Analyze 1 | . . . . . . . 1 . . . . . Garrison Access Hacks 1 | . . . . . . . . 1 . . . . Seal Access 1 | . . . . . . . . 1 . . . . Unauthorized Hacks 22 | . 4 . 8 . . . 6 4 . . . . Terminals 22 | . 4 . 8 . . . 6 4 . . . . Track 7 | . 1 . 3 . . . 1 2 . . . . Assimilate 2 | . . . 1 . . . 1 . . . . . Botnet 11 | . 3 . 3 . . . 3 2 . . . . Operators 2 | . . . 1 . . . 1 . . . . . Fabricators . | . . . . . . . . . . . . . Repair Stations . | . . . . . . . . . . . . . Recycling Units . | . . . . . . . . . . . . . Scanalyzers . | . . . . . . . . . . . . . Garrison Access . | . . . . . . . . . . . . . Data Cores Recovered . | . . . . . . . . . . . . . Used . | . . . . . . . . . . . . . Hacking Detections 27 | . 5 1 6 . . . 6 9 . . . . Full Trace Events 2 | . . . . . . . . 2 . . . . Feedback Events . | . . . . . . . . . . . . . Feedback Blocked . | . . . . . . . . . . . . . Robot Schematics Acquired 4 | . . . . . . . . . . . 4 . Robots Built . | . . . . . . . . . . . . . Authchips . | . . . . . . . . . . . . . Time . | . . . . . . . . . . . . . Total Robot Build Rating . | . . . . . . . . . . . . . Part Schematics Acquired 15 | . . . . . . . 1 . . . 14 . Parts Built 1 | . . . . . . . . 1 . . . . Authchips . | . . . . . . . . . . . . . Time 51 | . . . . . . . . 51 . . . . Total Part Build Rating 1 | . . . . . . . . 1 . . . . Parts Repaired 1 | . . . . . . . . 1 . . . . Time 19 | . . . . . . . . 19 . . . . Parts Recycled . | . . . . . . . . . . . . . Recycled Matter . | . . . . . . . . . . . . . Retrieved Matter . | . . . . . . . . . . . . . Retrieved Components 9 | . . . 9 . . . . . . . . . Parts Scanalyzed 1 | . . . . . . . 1 . . . . . Part Schematics Acquired 1 | . . . . . . . 1 . . . . . Parts Damaged . | . . . . . . . . . . . . . Bothacking | -11 -10 -10 -9 -9 -9 -8 -8 -7 -7 -7 -7 -7 ------------ Run | Scr Mat Min Mat Min Exi Min Mat Fac Low Low Zio Dee Used RIF Installer . | . . . . . . . . . . . . . Robots Hacked . | . . . . . . . . . . . . . Non-combat . | . . . . . . . . . . . . . Combat . | . . . . . . . . . . . . . Robot Hacks Applied . | . . . . . . . . . . . . . Relay Couplers Released 1 | . . . . . . . 1 . . . . . Machine Destruction 1 | . . . . . . . 1 . . . . . Fabnet Peak Effective % . | . . . . . . . . . . . . . Robots Rewired . | . . . . . . . . . . . . . Allies Hacked . | . . . . . . . . . . . . . Hacks Repelled . | . . . . . . . . . . . . . Allies | -11 -10 -10 -9 -9 -9 -8 -8 -7 -7 -7 -7 -7 -------- Run | Scr Mat Min Mat Min Exi Min Mat Fac Low Low Zio Dee Total Allies 5 | . . 4 . . . . 1 . . . . . Largest Group 4 | . . 4 2 . . . 1 . . . . . Highest-Rated Group 71 | . . 71 24 . . . 10 . . . . . Highest-Rated Ally 31 | . . 31 16 . . . 10 . . . . . Total Orders 12 | . . . . . . . 12 . . . . . STAY 6 | . . . . . . . 6 . . . . . FOLLOW 6 | . . . . . . . 6 . . . . . Ally Attacks 21 | . . 19 2 . . . . . . . . . Total Damage 259 | . . 232 27 . . . . . . . . . Kills 4 | . . 4 . . . . . . . . . . Allies Corrupted . | . . . . . . . . . . . . . Allies Melted . | . . . . . . . . . . . . . Intel | -11 -10 -10 -9 -9 -9 -8 -8 -7 -7 -7 -7 -7 ------- Run | Scr Mat Min Mat Min Exi Min Mat Fac Low Low Zio Dee Robot Analysis Total 5 | . 1 1 3 . . . . . . . . . Derelict Logs Recovered 4 | . . 1 . . . . . . . 1 2 . Drone Launches . | . . . . . . . . . . . . . Drone Recoveries . | . . . . . . . . . . . . . Exploration | -11 -10 -10 -9 -9 -9 -8 -8 -7 -7 -7 -7 -7 ------------- Run | Scr Mat Min Mat Min Exi Min Mat Fac Low Low Zio Dee Turns Passed 22638 | 114 689 648 1328 542 639 145 2486 3631 3089 624 6734 1969 Spaces Moved 9864 | 86 470 549 795 189 331 69 1094 1450 1269 263 2570 729 Core 41 | 10 . . . . . . . . . . . 31 Treads 158 | . . . 50 . . . 108 . . . . . Legs 31 | . . . . . . . . . . . . 31 Wheels 9634 | 76 470 549 745 189 331 69 986 1450 1269 263 2570 667 Hover . | . . . . . . . . . . . . . Flight . | . . . . . . . . . . . . . Fastest Speed 50 | 50 90 105 110 115 105 210 115 205 210 225 155 50 Average Speed 187 | 87 109 105 127 117 188 210 153 210 224 225 210 234 Slowest Speed 425 | 100 140 105 240 120 225 210 240 325 225 225 425 305 Overloaded Moves . | . . . . . . . . . . . . . Propulsion Burnouts . | . . . . . . . . . . . . . Robots Hopped . | . . . . . . . . . . . . . Cave-ins Triggered . | . . . . . . . . . . . . . Exploration Rate (%) 59 | 4 82 94 71 20 69 26 62 39 83 51 86 81 Regions Visited 12 Branch Regions 8 Pre-discovered Areas 2 | . . . . . . . . . . . 2 . Known Exits Taken 4 | . . . . . . . . 1 1 1 1 . Unknown Exits Taken 8 | 1 1 1 1 1 1 1 1 . . . . . Scrap Searched 6 | . . 2 . 1 . . . . . 1 2 . Spaces Dug 82 | . . . . . . . 26 23 17 . 5 11 Terrain Destroyed 230 | 5 . . 39 . . . 36 37 22 3 27 61 Melee 78 | . . . . . . . 23 23 17 . 5 10 Projectile 26 | . . . . . . . . 14 5 3 1 3 AOE 126 | 5 . . 39 . . . 13 . . . 21 48 Terrain Rammed . | . . . . . . . . . . . . . Walls Destroyed . | . . . . . . . . . . . . . Machines Disabled . | . . . . . . . . . . . . . Actions | -11 -10 -10 -9 -9 -9 -8 -8 -7 -7 -7 -7 -7 --------- Run | Scr Mat Min Mat Min Exi Min Mat Fac Low Low Zio Dee Total 12918 | 106 599 600 996 509 346 69 1695 1920 1434 282 3474 888 Wait 1614 | . 86 36 65 317 . . 348 234 90 7 422 9 Move 9852 | 85 469 548 794 188 330 68 1093 1449 1268 262 2569 729 Hop . | . . . . . . . . . . . . . Pick Up 155 | 5 9 4 31 . 7 . 26 35 5 1 25 7 Fast Attach 28 | 7 2 . 1 . 1 . 4 9 1 . 2 1 Attach 82 | . 1 1 12 . 1 . 25 15 3 . 12 12 Detach 31 | . . . 1 . 1 . 7 12 4 . 4 2 Swap 175 | 2 6 . 12 2 4 1 34 46 12 2 28 26 Drop 112 | . 2 . 18 2 2 . 15 30 3 1 19 20 Fire 675 | 7 24 11 62 . . . 74 52 28 5 360 52 Melee 192 | . . . . . . . 69 38 20 4 31 30 Ram . | . . . . . . . . . . . . . Kick . | . . . . . . . . . . . . . Crush . | . . . . . . . . . . . . . Escape Stasis . | . . . . . . . . . . . . . Rewire . | . . . . . . . . . . . . . Trap 2 | . . . . . . . . . . . 2 . Miscellaneous . | . . . . . . . . . . . . . Route ------- -11/Scrapyard -10/Materials (discovered 4 exits: *Mat x3 / *Min) -10/Mines (discovered 2 exits: *Mat x2) -9/Materials (discovered 4 exits: *Mat / [*Min x2] / [*Sto]) -9/Mines -9/Exiles -8/Mines -8/Materials -7/Factory (discovered 2 exits: *Fac / *Low) -7/Lower Caves -7/Lower Caves -7/Zion (discovered 2 exits: *Dee / [*Pro]) -7/Deep Caves (discovered 1 exit: *Pro) History --------- Turn | Location | Event 13 | -11/Scrapyard | Discovered new exit (range 15) 115 | -11/Scrapyard | Entered Materials 302 | -10/Materials | Build established: Mutant 355 | -10/Materials | Discovered new exit (range 16) 394 | -10/Materials | Discovered new exit (range 16) 531 | -10/Materials | Discovered new exit (range 5) 711 | -10/Materials | Discovered new exit (range 16) 804 | -10/Materials | Entered Mines 855 | -10/Mines | Learned Materials emergency access door positions 1042 | -10/Mines | Discovered new exit (range 9) 1047 | -10/Mines | Received a Mining Laser from a helpful Derelict 1320 | -10/Mines | Assisted by bots powering up and referring to "LRC-V3" 1381 | -10/Mines | Discovered new exit (range 10) 1452 | -10/Mines | Entered Materials 1452 | -9/Materials | Accompanied by 2 allies 1452 | -9/Materials | Evolved 2 slots: Utility x2 1566 | -9/Materials | Discovered new exit (range 16) 1889 | -9/Materials | Discovered new exit (range 16) 1982 | -9/Materials | Discovered new exit (range 14) 2193 | -9/Materials | Lost 5 parts (1p1n3u) 2351 | -9/Materials | Discovered new exit (range 13) 2418 | -9/Materials | Build established: Scavenger-Mutant 2573 | -9/Materials | System corruption reached 10% 2780 | -9/Materials | Entered Mines 2794 | -9/Mines | Assembled infested the area 2799 | -9/Mines | Assisted by a Guerilla fighting off Assembled 3201 | -9/Mines | Deemed a non-threat by the Exiles lab entrance 3202 | -9/Mines | Discovered new exit (range 5) 3322 | -9/Mines | Entered Exiles 3351 | -9/Exiles | Met 8R-AWN 3372 | -9/Exiles | Met EX-HEX 3484 | -9/Exiles | Met EX-DEC 3539 | -9/Exiles | Met EX-BIN 3635 | -9/Exiles | Aligned with FarCom system 3637 | -9/Exiles | Given EX-Vault access code 3686 | -9/Exiles | Opened EX-Vault 3700 | -9/Exiles | Found AWS/Thermal 3705 | -9/Exiles | Found AWS/Gauss 3711 | -9/Exiles | Found Longsword +1 3717 | -9/Exiles | Build established: Hauler-Mutant 3758 | -9/Exiles | Warned to stay clear of 0b10 Research branches 3936 | -9/Exiles | Discovered new exit (range 14) 3961 | -9/Exiles | Stole three prototypes: AWS/Thermal, AWS/Gauss, Longsword +1 3961 | -9/Exiles | Entered Mines 4076 | -8/Mines | Discovered new exit (range 10) 4106 | -8/Mines | Entered Materials 4106 | -8/Materials | Evolved 2 slots: Utility x2 4262 | -8/Materials | Build established: Hauler-Assassin 4567 | -8/Materials | Garrison activated, responded to threat 4646 | -8/Materials | Lost 7 parts (1n4u2w) 4672 | -8/Materials | Garrison activated, responded to threat 4760 | -8/Materials | Lost 3 parts (1n2w) 5058 | -8/Materials | Build established: Mutant 5082 | -8/Materials | Garrison activated, responded to threat 5087 | -8/Materials | Core integrity fell below 50% 5479 | -8/Materials | Lost 3 parts (1p2w) 6422 | -8/Materials | Discovered new exit (range 16) 6592 | -8/Materials | Entered Factory 6592 | -7/Factory | Evolved 2 slots: Utility x2 6594 | -7/Factory | FarCom data flow suspended 6902 | -7/Factory | Build established: Hauler-Mutant 8064 | -7/Factory | Garrison activated, responded to threat 8112 | -7/Factory | Destroyed 9 combat bots 8196 | -7/Factory | Fabricated Humpback (x1) 9013 | -7/Factory | Repaired Hrd. Medium Armor Plating 9545 | -7/Factory | Discovered new exit (range 4) 9551 | -7/Factory | Identified exit to Lower Caves 9741 | -7/Factory | Discovered new exit (range 13) 9848 | -7/Factory | Identified exit to Factory 10223 | -7/Factory | Entered Lower Caves 10223 | -7/Lower Caves | Spotted ER-K0R(f) 10224 | -7/Lower Caves | Encountered a Master Thief 10228 | -7/Lower Caves | AWS/Gauss stolen by Master Thief 10512 | -7/Lower Caves | Encountered a Warlord checkpoint 12790 | -7/Lower Caves | Discovered new exit (range 11) 12791 | -7/Lower Caves | Attracted the attention of an 0b10 checkpoint 12857 | -7/Lower Caves | Identified exit to Lower Caves 13312 | -7/Lower Caves | Entered another Lower Caves area 13312 | -7/Lower Caves | Spotted 4H-9GO(f) 13312 | -7/Lower Caves | Spotted T8-FZR(f) 13313 | -7/Lower Caves | Encountered a Master Thief 13313 | -7/Lower Caves | Encountered a Master Thief 13317 | -7/Lower Caves | AWS/Thermal stolen by Master Thief 13321 | -7/Lower Caves | Dirty Bomb Trap stolen by Master Thief 13714 | -7/Lower Caves | Learned Factory garrison access intel 13822 | -7/Lower Caves | Discovered new exit (range 7) 13844 | -7/Lower Caves | Identified exit to Zion 13865 | -7/Lower Caves | Encountered a Warlord checkpoint 13936 | -7/Lower Caves | Entered Zion 14056 | -7/Zion | Learned location of Warlord (-4) 14222 | -7/Zion | Discovered new exit (range 11) 15030 | -7/Zion | Found GAL Module 15204 | -7/Zion | Learned Factory emergency access door positions 15213 | -7/Zion | Learned Factory stockpile data 15243 | -7/Zion | Found CR-A16's Pointy Stick 15944 | -7/Zion | Discovered new exit (range 4) 15946 | -7/Zion | Saw the warning signs outside the Deep Caves entrance 15949 | -7/Zion | Identified exit to Deep Caves 17972 | -7/Zion | Attacked by Zionites 18998 | -7/Zion | Build established: Scavenger-Mutant 20447 | -7/Zion | Destroyed Imprinter 20475 | -7/Zion | Extracted access codes from Imprinter's data core 20670 | -7/Zion | Entered Deep Caves 20891 | -7/Deep Caves | Build established: Hauler-Mutant 21556 | -7/Deep Caves | Z-Facility disabled 22233 | -7/Deep Caves | Discovered new exit (range 6) 22245 | -7/Deep Caves | Identified exit to Proximity Caves 22457 | -7/Deep Caves | Spotted as-29080 22484 | -7/Deep Caves | Destroyed as-29080 22509 | -7/Deep Caves | Lost 5 parts (1n3u1w) 22546 | -7/Deep Caves | Triggered Deep Caves wall 22548 | -7/Deep Caves | Spotted AS-91831 22556 | -7/Deep Caves | Exposed GOLEM chamber 22560 | -7/Deep Caves | Core integrity fell below 50% 22594 | -7/Deep Caves | Lost 3 parts (2u1w) 22599 | -7/Deep Caves | Destroyed 39 combat bots 22617 | -7/Deep Caves | Core integrity fell below 20% 22639 | -7/Deep Caves | Destroyed by as-05398 with Assembled Shotgun Last Messages --------------- 22609_ Penetrated by Slug. 22612_ Slug penetrates as-05398. 22612_ Sneak attack on ZN-0G5(l). 22612_ ZN-0G5(l) destroyed. 22612_ Flak Gun destroyed. 22612_ Mic. Nuclear Core destroyed. 22614_ Penetrated by Slug. 22615_ as-16550 destroyed. 22615_ Penetrated by Slug. 22615_ Critical hit (Destroy). 22615_ Zio. Composite Leg I destroyed. 22616_ Penetrated by Slug. 22619_ Shock Bomb Launcher destroyed. 22620_ Penetrated by Slug. 22622_ Slug penetrates Wall. 22625_ Acquired Imp. Carbon-fiber Leg. 22627_ Penetrated by Slug. 22638_ Destroyed Asb. Hover System. 22638_ Adv. Targeting Computer destroyed. 22638_ System corrupted by crushing effect (+1). Map ----- +----------------------------------------------------+ | ???????????# #???## ##?????## ##? | | ????????????# #??### ####??# #? | | ????????????### #?## #??# #? | | ??????????????# #?# #??# #? | | ??????????????# #??# #???# #?? | | ??????????????# ##### #??## #?? | | ??????????????# ##?# #??? | | ??????????????# ### #???? | | ??????????????####### #???# | | ???????????????????## #??### | | ???????????????????# ### #### | | ???????????????????# #?# | | ???????????????????## #?# | | ????????????????????## ## ## | | ?????????????????????# ########### | | ?????????????????????## #????????# | | ???????????????######## #???????# | | ???????????????# #?????## | | ? ????????# ##### ### #????# | | * ??????# #???## #?# #????# | | = ##????# ###??## ##?# #????## | | * #???## ##??####??## #????# | | #??## ##????????### #????# " # | | *! #??# #######?????# ##????# """ # | | * #??# #??????###?????# "" # | | #??## @ ##????########?# | | ! #???## ##### a ##?### # >#?###### | | #????# #??# ### #??????## | | * ##???# #### #a ## ####???????# | | ! * #???## ### # #### ###?????????## | | ! #????# #?# # #### #?????????### | | #????# #?# # ## #????????## | | ###### ### a ## #????????# | | ! # # ### ##???????# | | ## ##?????## | | = #### ### #????## | | " #?#### ###???## | | # ]=[ #????# " ####### | | = "## | !!&#????# """ | | # # "### !!]#????# "" | | #" "# "# ###?## /[##????# ######## | | ## ## ####????#####?????#### ##??????## #### | | ?#### #???????????????????### # ####???????####??? | | ????##??????????????????????#####????????????????? | | | | | | | | | | | | | +----------------------------------------------------+ Best States ------------- Heat Dissipation 48 Energy Generation 16 Energy Capacity 540 Matter Stores 450 Matter Capacity 450 Sight Range 18 Robot Scan Range 15 Terrain Scan Range 16 Terrain Scan Density 10 Jamming Range 12 Armor Coverage 1050 Resistance: TH 15 Weapon Shielding 66 Evasion (%) 50 Targeting Accuracy 12 Recoil Reduction 2 Offensive Hacking 10 Defensive Hacking 10 Item Schematics ----------------- Humpback | -8/Materials | Scanalyzed Imp. Deuterium Engine | -7/Zion | Archive Plasma Rifle | -7/Zion | Archive Mak. Shrapnel Gun | -7/Zion | Archive Imp. Trap Scanner | -7/Zion | Archive Remote Datajack | -7/Zion | Archive Energy Well | -7/Zion | Archive Mak. Spear | -7/Zion | Archive Variable Charge Gun | -7/Zion | Archive Mak. Trap Scanner | -7/Zion | Archive Core Analyzer | -7/Zion | Archive Drone Bay | -7/Zion | Archive Launcher Guidance Computer | -7/Zion | Archive Lrn. Missile Launcher | -7/Zion | Archive Hvy. Laser | -7/Zion | Archive Robot Schematics ------------------ L-41 Fighter | -7/Zion | Archive H-77 Assassin | -7/Zion | Archive L-31 Rogue | -7/Zion | Archive S-27 Virus | -7/Zion | Archive Fabricated ------------ Humpback | x1 | -7/Factory Alien Tech Used ----------------- None Achievements -------------- None Challenges ------------ None Game ------ Seed CloakSurveybotMagmablaster Manual? 0 Play Time 02:41:50 Cumulative 1216.6 hours Start 2022.05.15 @ 18:22:27 End 2022.05.15 @ 23:11:03 Sessions 3 Manual Loads 0 Difficulty Rogue Special Mode None Game No. 444 Rogue 444 Adventurer 0 Explorer 0 Win Type - Total 26 Types 13/2/7/0/0/0/4/0/0 Lore% 89 Gallery% 90 Achievement% 85 Wizard Run 0 Options --------- ASCII 0 Keyboard 0 Movement Vi Keybinds 0 Fullscreen 0 Font 12/Crisp Map View 76x50 Tactical HUD 1 Map Filters NONE Filters NONE Steam 1 RUN: 49cb836a-a222-49a2-9671-074ecf9b247e